bitfinex/quotes_BTCUSD_20240723
["timestamp","ask_amount","ask_price","bid_price","bid_amount"]
[1721717124878,0.96847943,66689.0,66688.0,0.16901991]
[1721717125092,0.901197,66689.0,66688.0,0.16901991]
[1721717125299,1.34805865,66689.0,66688.0,0.022]
[1721717125513,1.201096,66689.0,66688.0,0.022]
[1721717125928,1.29081417,66689.0,66688.0,0.022]
[1721717126136,1.201096,66689.0,66688.0,0.022]
[1721717126349,1.29081635,66689.0,66688.0,0.02227332]
[1721717126550,0.901197,66689.0,66688.0,0.16929323]
[1721717126993,0.96848652,66689.0,66688.0,0.16901991]
[1721717127187,0.901197,66689.0,66688.0,0.16901991]
[1721717127397,0.901197,66689.0,66688.0,0.16929323]
[1721717127604,0.901197,66689.0,66688.0,0.16901991]
[1721717128011,0.901197,66689.0,66688.0,0.16929323]
[1721717128221,0.96848769,66689.0,66688.0,0.02227332]
[1721717128425,0.96848919,66689.0,66688.0,0.02227332]
[1721717128627,0.96848894,66689.0,66688.0,0.02227332]
[1721717128930,0.96848894,66689.0,66688.0,0.022]
[1721717129106,0.901197,66689.0,66688.0,0.022]
[1721717129342,0.96848894,66689.0,66688.0,0.02227332]
[1721717129526,0.901197,66689.0,66688.0,0.022]
[1721717129725,0.80305945,66689.0,66688.0,0.16929323]
[1721717130183,0.50316045,66689.0,66688.0,0.16929323]
[1721717130384,0.458298,66689.0,66688.0,0.16929323]
[1721717133049,0.00845,66689.0,66688.0,0.16929323]
[1721717134285,0.158399,66689.0,66688.0,0.16929323]
[1721717135293,0.458298,66689.0,66688.0,0.16929323]
[1721717135497,0.158399,66689.0,66688.0,0.16929323]
[1721717135695,0.458298,66689.0,66688.0,0.16929323]
[1721717135910,0.50316337,66689.0,66688.0,0.16929323]
[1721717136106,0.50317143,66689.0,66688.0,0.16929323]
[1721717136315,0.51978274,66689.0,66688.0,0.16929323]
[1721717137367,0.17501031,66689.0,66688.0,0.16929323]
[1721717137575,0.47490931,66689.0,66688.0,0.16929323]
[1721717138438,0.51978274,66689.0,66688.0,0.16929323]
[1721717138648,0.21988374,66689.0,66688.0,0.16929323]
[1721717139100,0.17498796,66689.0,66688.0,0.16929323]
[1721717139563,0.21987046,66689.0,66688.0,0.16929323]
[1721717139835,0.06992146,66689.0,66688.0,0.16929323]
[1721717140508,0.02503896,66689.0,66688.0,0.16929323]
[1721717141184,0.17498796,66689.0,66688.0,0.16929323]
[1721717141624,0.02503896,66689.0,66688.0,0.16929323]
[1721717141844,0.53728696,66689.0,66688.0,0.16901991]
[1721717142174,0.9510869,66689.0,66688.0,0.16901991]
[1721717142579,0.9510869,66689.0,66688.0,0.16929323]
[1721717142580,0.6511879,66689.0,66688.0,0.16929323]
[1721717142817,0.6561304,66689.0,66688.0,0.16929323]
[1721717143276,0.8886869,66689.0,66688.0,0.16929323]
[1721717143499,0.95602935,66689.0,66688.0,0.16929323]
[1721717143955,0.8886869,66689.0,66688.0,0.16929323]
[1721717144176,0.95603237,66689.0,66688.0,0.16929323]
[1721717144418,0.8886869,66689.0,66688.0,0.16929323]
[1721717144904,0.65613071,66689.0,66688.0,0.16929323]
[1721717145587,0.95575439,66689.0,66688.0,0.16929323]
[1721717145834,0.95575439,66689.0,66688.0,0.022]
[1721717146076,0.88841176,66689.0,66688.0,0.022]
[1721717146370,1.36062371,66689.0,66688.0,0.022]
[1721717146634,1.70203109,66689.0,66688.0,0.022]
[1721717147113,1.70203109,66689.0,66688.0,0.072]
[1721717147369,1.85175777,66689.0,66688.0,0.072]
[1721717147609,1.85175777,66689.0,66688.0,0.061]
[1721717148111,1.76033463,66689.0,66688.0,0.066]
[1721717148361,1.95267294,66689.0,66688.0,0.061]
[1721717148604,1.8011386,66689.0,66688.0,0.05]
[1721717148848,1.8011386,66689.0,66688.0,0.056]
[1721717148849,1.39472665,66689.0,66688.0,0.056]
[1721717149324,1.69462565,66689.0,66688.0,0.056]
[1721717149561,1.69462565,66689.0,66688.0,0.057]
[1721717149805,1.8415883,66689.0,66688.0,0.057]
[1721717150069,1.89131498,66689.0,66688.0,0.057]
[1721717150293,2.04284932,66689.0,66688.0,0.057]
[1721717150502,1.8415883,66689.0,66688.0,0.057]
[1721717150710,1.89131498,66689.0,66688.0,0.057]
[1721717150931,1.8415883,66689.0,66688.0,0.057]
[1721717151155,1.39485479,66689.0,66688.0,0.057]
[1721717151576,1.69475379,66689.0,66688.0,0.057]
[1721717151759,1.39485479,66689.0,66688.0,0.057]
[1721717152225,1.69475379,66689.0,66688.0,0.057]
[1721717154167,1.69483554,66689.0,66688.0,0.057]
[1721717154579,1.604095,66689.0,66688.0,0.057]
[1721717154807,1.69492292,66689.0,66688.0,0.057]
[1721717155242,1.84188557,66689.0,66688.0,0.057]
[1721717155459,1.54198657,66689.0,66688.0,0.057]
[1721717155947,1.84188557,66689.0,66688.0,0.057]
[1721717156174,1.69492292,66689.0,66688.0,0.057]
[1721717156376,1.7446496,66689.0,66688.0,0.057]
[1721717156599,1.69492292,66689.0,66688.0,0.057]
[1721717157314,1.69506239,66689.0,66688.0,0.057]
[1721717157482,1.69506246,66689.0,66688.0,0.057]
[1721717157684,1.84202511,66689.0,66688.0,0.057]
[1721717158139,1.89175179,66689.0,66688.0,0.057]
[1721717159126,1.89175179,66689.0,66688.0,0.056]
[1721717159339,1.89175179,66689.0,66688.0,0.055]
[1721717159545,1.89175179,66689.0,66688.0,0.056]
[1721717159979,1.89162914,66689.0,66688.0,0.056]
[1721717160170,1.89162914,66689.0,66688.0,0.051]
[1721717160600,2.04319953,66689.0,66688.0,0.051]
[1721717160800,2.04319953,66689.0,66688.0,0.056]
[1721717161033,2.24152814,66689.0,66688.0,0.056]
[1721717161227,1.94162914,66689.0,66688.0,0.056]
[1721717161379,2.09982914,66689.0,66688.0,0.056]
[1721717161575,2.39972814,66689.0,66688.0,0.056]
[1721717162205,2.39972814,66689.0,66688.0,0.051]
[1721717162425,2.39972814,66689.0,66688.0,0.05]
[1721717162641,2.35847858,66689.0,66688.0,0.05]
[1721717162851,2.39894011,66689.0,66688.0,0.05]
[1721717163108,2.39894011,66689.0,66688.0,0.051]
[1721717163338,2.39894011,66689.0,66664.0,0.001074]
[1721717163339,1.050024,66665.0,66664.0,0.001074]
[1721717163545,1.18944042,66665.0,66664.0,0.001074]
[1721717163734,1.21192167,66665.0,66664.0,0.001074]
[1721717164254,1.09961925,66665.0,66664.0,0.001074]
[1721717164453,1.189422,66665.0,66664.0,0.001074]
[1721717165287,1.189422,66665.0,66664.0,0.014074]
[1721717165453,0.45001,66665.0,66664.0,0.29886723]
[1721717165827,0.51119343,66665.0,66664.0,0.29886723]
[1721717166035,0.45001,66665.0,66664.0,0.29886723]
[1721717166242,0.51121871,66665.0,66664.0,0.29886723]
[1721717166481,0.21121171,66665.0,66664.0,0.29886723]
[1721717166690,0.01631732,66665.0,66664.0,0.74088523]
[1721717166901,0.04489139,66671.0,66670.0,0.00027332]
[1721717167113,0.149985,66674.0,66671.0,0.14667332]
[1721717167114,0.04489139,66672.0,66671.0,0.14667332]
[1721717167384,0.06733708,66674.0,66673.0,0.29665832]
[1721717167385,0.04489139,66674.0,66673.0,0.29665832]
[1721717167587,0.04489139,66675.0,66674.0,0.15025632]
[1721717167828,0.04489139,66676.0,66675.0,0.00027332]
[1721717168032,0.06120632,66676.0,66675.0,0.14729323]
[1721717168666,0.4696,66677.0,66676.0,0.00027332]
[1721717168882,0.48589525,66677.0,66676.0,0.28659323]
[1721717169089,0.01629525,66677.0,66676.0,1.03648823]
[1721717169300,0.12065129,66689.0,66685.0,0.00027332]
[1721717169301,0.04487907,66686.0,66685.0,0.00027332]
[1721717169510,0.00845,66689.0,66688.0,0.15022532]
[1721717169511,0.05332907,66689.0,66688.0,0.15022532]
[1721717169717,0.02473117,66689.0,66688.0,0.74024923]
[1721717170132,0.02473117,66689.0,66688.0,0.44034523]
[1721717170336,0.02473117,66689.0,66688.0,0.29039323]
[1721717170540,0.02473117,66689.0,66688.0,0.44034523]
[1721717170948,0.02573117,66689.0,66688.0,0.29839323]
[1721717171357,0.17568017,66689.0,66688.0,0.29839323]
[1721717171563,0.02577094,66689.0,66688.0,0.29839323]
[1721717171771,0.17571994,66689.0,66688.0,0.29839323]
[1721717172186,0.17571994,66689.0,66688.0,0.31239323]
[1721717172391,0.17571994,66689.0,66688.0,0.16929323]
[1721717172801,0.47561894,66689.0,66688.0,0.16929323]
[1721717173006,0.5204811,66689.0,66688.0,0.16929323]
[1721717173213,0.47561894,66689.0,66688.0,0.16929323]
[1721717173419,0.47561894,66689.0,66688.0,0.02227332]
[1721717173420,0.91828637,66689.0,66688.0,0.02227332]
[1721717173622,0.87595022,66689.0,66688.0,0.02227332]
[1721717174264,0.89838785,66689.0,66688.0,0.00827332]
[1721717174463,0.89819993,66689.0,66688.0,0.00827332]
[1721717174667,0.50857335,66689.0,66688.0,0.16929323]
[1721717175021,0.50857335,66689.0,66688.0,0.15529323]
[1721717175224,0.47541895,66689.0,66688.0,0.15529323]
[1721717175433,0.51927957,66689.0,66688.0,0.16129323]
[1721717175633,0.47441895,66689.0,66688.0,0.16129323]
[1721717175789,0.47541895,66689.0,66688.0,0.16929323]
[1721717177253,0.02557095,66689.0,66688.0,0.16929323]
[1721717177492,0.02559157,66689.0,66688.0,0.16929323]
[1721717177880,0.02562354,66689.0,66688.0,0.16929323]
[1721717180116,0.17557254,66689.0,66688.0,0.16929323]
[1721717180327,0.58823507,66689.0,66688.0,0.16929323]
[1721717180558,0.28835437,66689.0,66688.0,0.16929323]
[1721717180986,0.07050327,66689.0,66688.0,0.16929323]
[1721717181411,0.02564059,66689.0,66688.0,0.16929323]
[1721717183417,0.00945,66689.0,66688.0,0.16929323]
[1721717183639,0.02562304,66689.0,66688.0,0.16929323]
[1721717184857,0.02562304,66689.0,66688.0,0.23209323]
[1721717185068,0.02562304,66689.0,66688.0,0.30969323]
[1721717185477,0.02562304,66689.0,66688.0,0.45964523]
[1721717185893,0.02562304,66689.0,66688.0,0.30969323]
[1721717186536,0.025593,66689.0,66688.0,0.30969323]
[1721717187375,0.02550615,66689.0,66688.0,0.30969323]
[1721717188681,0.02550615,66689.0,66688.0,0.45964523]
[1721717189554,0.02546417,66689.0,66688.0,0.45964523]
[1721717190008,0.02546417,66689.0,66688.0,0.30969323]
[1721717190907,0.02549081,66689.0,66688.0,0.30969323]
[1721717192431,0.02549081,66689.0,66688.0,1.05945323]
[1721717192671,0.02548702,66689.0,66688.0,0.30969323]
[1721717193330,0.47533502,66689.0,66688.0,0.16929323]
[1721717193539,0.47533502,66689.0,66688.0,0.022]
[1721717193540,0.91204694,66689.0,66688.0,0.022]
[1721717193761,1.41527331,66689.0,66688.0,0.022]
[1721717193987,1.48087331,66689.0,66688.0,0.022]
[1721717195294,1.48089637,66689.0,66688.0,0.022]
[1721717195516,1.43163024,66689.0,66688.0,0.022]
[1721717195722,1.39095386,66689.0,66688.0,0.022]
[1721717196141,1.69085286,66689.0,66688.0,0.022]
[1721717196374,1.96354737,66689.0,66688.0,0.022]
[1721717196592,2.2289187,66689.0,66688.0,0.022]
[1721717197254,2.2289187,66689.0,66664.0,0.001074]
[1721717197255,0.449991,66668.0,66667.0,0.00027332]
[1721717197459,0.449991,66668.0,66667.0,0.14729323]
[1721717197460,0.84385914,66668.0,66667.0,0.14729323]
[1721717197666,0.79901679,66668.0,66667.0,0.14729323]
[1721717198303,0.04903179,66668.0,66664.0,0.001074]
[1721717198544,0.45001,66665.0,66664.0,0.001074]
[1721717198756,0.84387759,66665.0,66664.0,0.001074]
[1721717198969,1.09905579,66665.0,66664.0,0.001074]
[1721717199199,1.35441631,66665.0,66664.0,0.001074]
[1721717199407,1.68698875,66665.0,66664.0,0.001074]
[1721717199613,1.73672729,66665.0,66664.0,0.001074]
[1721717199819,1.68700061,66665.0,66664.0,0.001074]
[1721717200036,1.68700061,66665.0,66643.0,0.002794]
[1721717200037,1.350234,66655.0,66643.0,0.002794]
[1721717200255,1.350234,66655.0,66642.0,0.00970652]
[1721717200256,1.93629137,66655.0,66642.0,0.00970652]
[1721717200477,1.98601805,66655.0,66642.0,0.00970652]
[1721717200711,2.3742711,66655.0,66642.0,0.0094332]
[1721717200917,2.20864844,66655.0,66642.0,0.0034202]
[1721717201137,2.20864844,66655.0,66647.0,0.00027332]
[1721717201138,2.03172286,66655.0,66647.0,0.00027332]
[1721717201347,1.86714677,66655.0,66654.0,0.005924]
[1721717201801,1.89985084,66655.0,66654.0,0.000924]
[1721717202005,2.03255222,66655.0,66654.0,0.000924]
[1721717202428,2.01014497,66655.0,66654.0,0.000924]
[1721717203081,1.60384315,66655.0,66654.0,0.001924]
[1721717203289,1.56710347,66655.0,66654.0,0.001924]
[1721717203496,1.52617324,66655.0,66654.0,0.004924]
[1721717203901,1.67613589,66655.0,66654.0,0.004924]
[1721717204141,1.67613589,66655.0,66654.0,0.000924]
[1721717204355,1.67613589,66655.0,66654.0,0.009924]
[1721717204356,1.67318765,66655.0,66654.0,0.009924]
[1721717204573,1.67518765,66655.0,66654.0,0.009924]
[1721717204982,1.528225,66655.0,66654.0,0.009924]
[1721717205650,1.56118944,66655.0,66654.0,0.009924]
[1721717205861,1.528225,66655.0,66654.0,0.009924]
[1721717206069,1.56120126,66655.0,66654.0,0.009924]
[1721717206694,1.528225,66655.0,66654.0,0.009924]
[1721717207109,1.512282,66655.0,66654.0,0.009924]
[1721717207315,1.67522091,66655.0,66654.0,0.009924]
[1721717210120,1.67522752,66655.0,66654.0,0.000924]
[1721717210326,1.67322752,66655.0,66654.0,0.000924]
[1721717210982,1.67522752,66655.0,66654.0,0.010924]
[1721717212276,1.72522752,66655.0,66654.0,0.010924]
[1721717212484,2.2832062,66655.0,66654.0,0.010924]
[1721717212688,2.3162176,66655.0,66654.0,0.010924]
[1721717213110,2.26722333,66655.0,66654.0,0.010924]
[1721717213357,2.61635303,66655.0,66654.0,0.010924]
[1721717213575,2.26722333,66655.0,66654.0,0.000924]
[1721717213783,2.31430135,66655.0,66654.0,0.000924]
[1721717213997,2.61435335,66655.0,66654.0,0.000924]
[1721717214206,2.61435335,66655.0,66654.0,0.005924]
[1721717214609,2.61435335,66655.0,66654.0,0.000924]
[1721717214817,2.62335335,66655.0,66654.0,0.001924]
[1721717215025,2.62335335,66655.0,66654.0,0.005924]
[1721717216061,2.62333121,66655.0,66654.0,0.005924]
[1721717216275,2.61433121,66655.0,66654.0,0.000924]
[1721717216490,2.61433121,66655.0,66654.0,0.004924]
[1721717216720,2.62233121,66655.0,66654.0,0.004924]
[1721717218677,2.62228915,66655.0,66654.0,0.004924]
[1721717219315,2.62228759,66655.0,66654.0,0.004924]
[1721717219532,2.62228759,66655.0,66642.0,0.0034202]
[1721717219533,1.494477,66643.0,66642.0,0.0034202]
[1721717219752,1.72857885,66643.0,66642.0,0.0034202]
[1721717220201,1.82857885,66643.0,66642.0,0.0034202]
[1721717220620,1.68457885,66643.0,66642.0,0.0034202]
[1721717220837,1.46647885,66643.0,66642.0,0.0034202]
[1721717221061,1.46747885,66643.0,66642.0,0.0094202]
[1721717221283,1.46747885,66643.0,66642.0,0.0234202]
[1721717221503,2.24475976,66643.0,66642.0,0.0234202]
[1721717221706,2.41028644,66643.0,66642.0,0.0234202]
[1721717223181,2.41028644,66643.0,66642.0,0.0094202]
[1721717223635,2.41028644,66643.0,66642.0,0.0134202]
[1721717223861,2.61848644,66643.0,66642.0,0.0134202]
[1721717224082,2.61948644,66643.0,66642.0,0.0134202]
[1721717224310,2.57047233,66643.0,66642.0,0.0134202]
[1721717224530,2.57878245,66643.0,66642.0,0.0134202]
[1721717224760,2.62850913,66643.0,66642.0,0.0134202]
[1721717225041,2.62850162,66643.0,66642.0,0.0134202]
[1721717226389,2.57877494,66643.0,66642.0,0.0134202]
[1721717226575,2.32057494,66643.0,66642.0,0.0134202]
[1721717226784,2.37057494,66643.0,66642.0,0.0134202]
[1721717227012,2.42030162,66643.0,66642.0,0.0134202]
[1721717227227,2.62850162,66643.0,66642.0,0.0134202]
[1721717227433,2.62858326,66643.0,66642.0,0.0134202]
[1721717227660,1.69111448,66643.0,66642.0,0.0134202]
[1721717227873,1.20138902,66643.0,66642.0,0.0742202]
[1721717229536,0.05101802,66643.0,66642.0,0.07449352]
[1721717229742,0.16806306,66643.0,66642.0,0.07449352]
[1721717229943,0.16806306,66643.0,66642.0,0.07739171]
[1721717230152,0.152053,66643.0,66642.0,0.07739171]
[1721717230355,0.46808874,66643.0,66642.0,0.07449352]
[1721717230762,0.46708874,66643.0,66642.0,0.06449352]
[1721717230976,0.01592974,66643.0,66642.0,0.28500285]
[1721717231188,0.150031,66653.0,66652.0,0.14377332]
[1721717231406,0.01596709,66653.0,66652.0,0.14377332]
[1721717231635,0.01596709,66654.0,66653.0,0.00027332]
[1721717231841,0.4696,66655.0,66652.0,0.1435]
[1721717231842,0.4696,66655.0,66654.0,0.00027332]
[1721717232055,0.63563346,66655.0,66654.0,0.00027332]
[1721717232273,0.63563346,66655.0,66654.0,0.14729323]
[1721717232274,0.01600746,66655.0,66654.0,0.14729323]
[1721717232526,0.300855,66664.0,66660.0,0.00027332]
[1721717232527,0.45004,66661.0,66660.0,0.00027332]
[1721717232743,0.166006,66661.0,66660.0,0.08167332]
[1721717232954,0.766056,66661.0,66660.0,0.08167332]
[1721717233168,0.766056,66661.0,66660.0,0.08456102]
[1721717233379,0.76602386,66661.0,66660.0,0.0842877]
[1721717233595,0.87271175,66661.0,66660.0,0.0842877]
[1721717233822,0.76602386,66661.0,66660.0,0.0842877]
[1721717234245,0.76602386,66661.0,66660.0,0.08456102]
[1721717234677,0.46599886,66661.0,66660.0,0.08456102]
[1721717234887,0.46599886,66661.0,66660.0,0.08956102]
[1721717235099,0.46599886,66661.0,66660.0,0.08667332]
[1721717235323,0.46599886,66661.0,66660.0,0.08167332]
[1721717235324,0.01596186,66661.0,66660.0,0.08167332]
[1721717235535,0.150011,66662.0,66661.0,0.00027332]
[1721717235743,0.166008,66662.0,66661.0,0.00027332]
[1721717235945,0.266008,66662.0,66661.0,0.00027332]
[1721717236156,0.250011,66662.0,66661.0,0.00027332]
[1721717236386,0.26611076,66662.0,66661.0,0.00027332]
[1721717236626,0.26611076,66662.0,66661.0,0.36797256]
[1721717236627,0.01609976,66662.0,66661.0,0.36797256]
[1721717236822,0.00084,66664.0,66663.0,0.00027332]
[1721717237034,0.00084,66664.0,66663.0,0.44090123]
[1721717237246,0.00084,66664.0,66663.0,0.46390123]
[1721717237686,0.00084,66664.0,66663.0,1.06393323]
[1721717238315,0.00184,66664.0,66663.0,1.06893323]
[1721717238522,0.00084,66664.0,66663.0,1.06393323]
[1721717240074,0.00184,66664.0,66663.0,1.08993323]
[1721717240542,0.00184,66664.0,66663.0,0.78991723]
[1721717241171,0.00184,66664.0,66663.0,1.08993323]
[1721717242281,0.00184,66664.0,66663.0,1.13993323]
[1721717242489,0.00184,66664.0,66663.0,1.68691188]
[1721717242918,0.00184,66664.0,66663.0,2.02962099]
[1721717243577,0.00184,66664.0,66663.0,2.32963699]
[1721717243796,0.4696,66681.0,66680.0,0.29504332]
[1721717244057,0.44093655,66684.0,66683.0,0.15023632]
[1721717244268,0.00836315,66689.0,66683.0,0.15023632]
[1721717244269,0.00836315,66689.0,66688.0,0.00027332]
[1721717244478,0.00836315,66689.0,66688.0,0.14729323]
[1721717244680,0.15831215,66689.0,66688.0,0.14729323]
[1721717244886,0.75811015,66689.0,66688.0,0.14701991]
[1721717245101,0.449862,66687.0,66686.0,0.00027332]
[1721717245312,0.449862,66687.0,66686.0,0.14729323]
[1721717245737,0.00836315,66689.0,66688.0,0.00027332]
[1721717245939,0.15831215,66689.0,66688.0,0.00027332]
[1721717246153,0.15831215,66689.0,66688.0,0.01427332]
[1721717246557,0.45821115,66689.0,66688.0,0.01427332]
[1721717246767,0.45821115,66689.0,66688.0,0.00927332]
[1721717247174,0.45821115,66689.0,66688.0,0.00027332]
[1721717247381,0.45821115,66689.0,66688.0,0.00627332]
[1721717247592,0.15831215,66689.0,66688.0,0.00627332]
[1721717247793,0.15831215,66689.0,66688.0,0.00027332]
[1721717248040,0.45821115,66689.0,66688.0,0.00927332]
[1721717248250,0.00836315,66689.0,66688.0,0.15629323]
[1721717249100,0.00836315,66689.0,66688.0,0.17029323]
[1721717250979,0.15831215,66689.0,66688.0,0.17029323]
[1721717251394,0.00836315,66689.0,66688.0,0.17029323]
[1721717252269,0.15831215,66689.0,66688.0,0.17029323]
[1721717252699,0.45821115,66689.0,66688.0,0.17029323]
[1721717255054,0.15831215,66689.0,66688.0,0.17029323]
[1721717255260,0.15831215,66689.0,66688.0,0.023]
[1721717255261,0.83534837,66689.0,66688.0,0.023]
[1721717255400,1.14765138,66689.0,66688.0,0.023]
[1721717255821,0.77426296,66689.0,66688.0,0.02327332]
[1721717256049,0.45821115,66689.0,66688.0,0.23239323]
[1721717256248,0.15831215,66689.0,66688.0,0.23239323]
[1721717257685,0.45821115,66689.0,66688.0,0.23239323]
[1721717257831,0.77424826,66689.0,66688.0,0.17029323]
[1721717258038,0.77424826,66689.0,66688.0,0.02327332]
[1721717259703,0.47434926,66689.0,66688.0,0.02327332]
[1721717259898,0.47434926,66689.0,66688.0,0.17029323]
[1721717259899,0.02450126,66689.0,66688.0,0.17029323]
[1721717260112,0.02448906,66689.0,66688.0,0.17029323]
[1721717260324,0.02448906,66689.0,66688.0,0.31429323]
[1721717260526,0.00836315,66689.0,66688.0,0.33729323]
[1721717260941,0.02449572,66689.0,66688.0,0.33729323]
[1721717261564,0.02451167,66689.0,66688.0,0.33729323]
[1721717261774,0.02451167,66689.0,66688.0,0.48724523]
[1721717261775,0.00836315,66689.0,66688.0,0.48724523]
[1721717262200,0.00836315,66689.0,66688.0,0.78714923]
[1721717262822,0.00836315,66689.0,66688.0,1.08705323]
[1721717263100,0.00836315,66689.0,66688.0,0.78714923]
[1721717263627,0.00836315,66689.0,66688.0,0.77814923]
[1721717264105,0.00836315,66689.0,66688.0,0.79214923]
[1721717264341,0.00836315,66689.0,66688.0,1.08593748]
[1721717264546,0.00836315,66689.0,66688.0,1.42184148]
[1721717264980,0.00836315,66689.0,66688.0,1.43584148]
[1721717265208,0.00836315,66689.0,66688.0,1.26663446]
[1721717265426,0.00836315,66689.0,66688.0,0.91673046]
[1721717265693,0.00836315,66689.0,66688.0,1.21663446]
[1721717265889,0.00836315,66689.0,66688.0,0.91673046]
[1721717266110,0.00836315,66689.0,66688.0,0.46686783]
[1721717266320,0.00836315,66689.0,66688.0,0.616824]
[1721717266944,0.00836315,66689.0,66688.0,0.466872]
[1721717267370,0.00836315,66689.0,66688.0,0.322872]
[1721717267787,0.02445598,66689.0,66688.0,0.322872]
[1721717268412,0.02445598,66689.0,66688.0,0.772728]
[1721717268631,0.02445598,66689.0,66688.0,1.04892124]
[1721717268850,0.02445598,66689.0,66688.0,1.39882524]
[1721717269045,0.00836315,66689.0,66688.0,1.39882285]
[1721717269895,0.00836315,66689.0,66688.0,1.31492961]
[1721717271182,0.00836315,66689.0,66688.0,1.26492961]
[1721717271602,0.00836315,66689.0,66688.0,1.31492961]
[1721717271814,0.00836315,66689.0,66688.0,1.26492961]
[1721717272018,0.00836315,66689.0,66688.0,1.31492961]
[1721717272458,0.00836315,66689.0,66688.0,1.26492437]
[1721717272663,0.00836315,66689.0,66688.0,1.61482764]
[1721717273248,0.00836315,66689.0,66688.0,1.56482764]
[1721717273460,0.00836315,66689.0,66688.0,1.61482764]
[1721717273868,0.00836315,66689.0,66688.0,1.66482764]
[1721717274072,0.00836315,66689.0,66688.0,1.98539658]
[1721717274470,0.00836315,66689.0,66688.0,2.38530058]
[1721717274879,0.00836315,66689.0,66688.0,2.07312388]
[1721717275050,0.00836315,66689.0,66688.0,2.05688167]
[1721717275252,0.00836315,66689.0,66688.0,2.07088167]
[1721717275486,0.00836315,66689.0,66688.0,1.98488167]
[1721717275654,0.00836315,66689.0,66688.0,2.37078567]
[1721717275866,0.00836315,66689.0,66688.0,2.07088167]
[1721717276075,0.00836315,66689.0,66688.0,2.07988951]
[1721717276275,0.00836315,66689.0,66688.0,2.37979351]
[1721717276794,0.00836315,66689.0,66688.0,2.39379351]
[1721717277400,0.00836315,66689.0,66688.0,2.37979351]
[1721717277967,0.00836315,66689.0,66688.0,2.37967932]
[1721717278174,0.00836315,66689.0,66688.0,2.39367932]
[1721717279036,0.00836315,66689.0,66688.0,2.69357932]
[1721717280312,0.00836315,66689.0,66688.0,2.99348332]
[1721717280525,0.00836315,66689.0,66688.0,3.05575182]
[1721717280742,0.00836315,66689.0,66688.0,3.05559639]
[1721717280954,0.00836315,66689.0,66688.0,2.80043875]
[1721717280955,1e-08,66689.0,66688.0,2.80043875]
[1721717281176,1e-08,66689.0,66688.0,2.75569239]
[1721717281385,1e-08,66689.0,66688.0,2.57915077]
[1721717281588,1e-08,66689.0,66688.0,2.69342409]
[1721717281999,1e-08,66689.0,66688.0,2.67942409]
[1721717282865,1e-08,66689.0,66688.0,2.99332809]
[1721717283293,1e-08,66689.0,66688.0,2.99326571]
[1721717283496,1e-08,66689.0,66688.0,3.0380609]
[1721717283705,0.00084,66693.0,66692.0,2.29964632]
[1721717283920,0.00084,66693.0,66692.0,4.3538843]
[1721717284162,0.00084,66693.0,66692.0,4.82739584]
[1721717284365,0.00084,66693.0,66692.0,4.82737772]
[1721717284577,0.00084,66693.0,66692.0,4.42771451]
[1721717284790,0.00084,66693.0,66692.0,4.57467716]
[1721717284983,0.00084,66693.0,66692.0,4.51241444]
[1721717285211,0.00084,66693.0,66692.0,4.57467561]
[1721717285413,0.00084,66693.0,66692.0,4.61942932]
[1721717285614,0.00084,66693.0,66692.0,4.63342893]
[1721717286276,0.00084,66693.0,66692.0,4.58477976]
[1721717286477,0.00084,66693.0,66692.0,4.64702561]
[1721717286662,0.00084,66693.0,66692.0,4.54001649]
[1721717286866,0.00182215,66697.0,66696.0,1.79954732]
[1721717287071,0.00846,66713.0,66712.0,0.44327132]
[1721717287357,0.00846,66713.0,66712.0,1.93699962]
[1721717287598,0.00846,66713.0,66712.0,2.23679562]
[1721717287770,0.00846,66713.0,66712.0,2.36543674]
[1721717288584,0.00846,66713.0,66712.0,2.92192616]
[1721717288973,0.00846,66713.0,66712.0,2.93592616]
[1721717289319,0.00846,66713.0,66712.0,3.15281954]
[1721717289472,0.00846,66713.0,66712.0,3.20848359]
[1721717290013,0.00846,66713.0,66712.0,3.03575629]
[1721717290221,0.00846,66721.0,66715.0,0.1]
[1721717290222,0.00290661,66721.0,66715.0,0.1]
[1721717290426,0.00290661,66721.0,66720.0,1.70124265]
[1721717290722,0.00290661,66721.0,66720.0,2.55639362]
[1721717290884,0.00290661,66721.0,66720.0,2.25663362]
[1721717291081,0.00290661,66721.0,66720.0,2.40359627]
[1721717291487,0.00635661,66728.0,66727.0,0.74959332]
[1721717291688,0.00635661,66728.0,66727.0,1.04413362]
[1721717291954,0.00635661,66728.0,66727.0,1.09413362]
[1721717292153,0.00635661,66728.0,66727.0,1.14825435]
[1721717292435,0.00635661,66728.0,66727.0,1.62247867]
[1721717292679,0.00635661,66728.0,66727.0,1.92220867]
[1721717292838,0.00635661,66728.0,66727.0,2.06810867]
[1721717293018,0.00635661,66728.0,66727.0,2.08210867]
[1721717294144,0.00635661,66728.0,66727.0,2.09610867]
[1721717294345,0.00635661,66728.0,66727.0,2.08210867]
[1721717294771,0.00635661,66728.0,66727.0,2.61393667]
[1721717295011,0.00635661,66728.0,66727.0,2.71393667]
[1721717295388,0.00635661,66728.0,66727.0,3.09693667]
[1721717295797,0.00635661,66728.0,66727.0,2.97244035]
[1721717295994,0.00635661,66728.0,66727.0,3.09692732]
[1721717296193,0.00635661,66728.0,66727.0,3.14239032]
[1721717297248,0.00635661,66728.0,66727.0,3.12839032]
[1721717297470,0.00635661,66728.0,66727.0,3.42811832]
[1721717297670,0.00845,66730.0,66729.0,1.33618932]
[1721717297875,0.00845,66730.0,66729.0,2.57028845]
[1721717298188,0.00845,66730.0,66729.0,2.87000745]
[1721717298405,0.00845,66730.0,66729.0,2.86998651]
[1721717299091,0.00845,66730.0,66729.0,2.87278051]
[1721717299318,0.00845,66730.0,66729.0,2.88678051]
[1721717299632,0.00845,66730.0,66729.0,2.88398651]
[1721717300264,0.00845,66730.0,66729.0,2.58426751]
[1721717300466,0.00845,66730.0,66729.0,2.59826751]
[1721717301095,0.00845,66730.0,66729.0,2.89798651]
[1721717301563,0.00845,66730.0,66729.0,2.59826751]
[1721717301765,0.00845,66730.0,66729.0,2.60106151]
[1721717301965,0.00845,66730.0,66729.0,2.59826751]
[1721717302342,0.00845,66730.0,66729.0,2.60106151]
[1721717302555,0.00845,66730.0,66729.0,2.55333391]
[1721717303237,0.00845,66730.0,66729.0,2.50787091]
[1721717303449,0.00845,66730.0,66729.0,2.80758991]
[1721717303849,0.00845,66730.0,66729.0,2.97930109]
[1721717304685,0.00845,66730.0,66729.0,2.67958209]
[1721717305130,0.00845,66730.0,66729.0,2.20100826]
[1721717305338,0.00845,66730.0,66729.0,2.19821426]
[1721717305959,0.00845,66730.0,66729.0,2.20728789]